[Event "Titled Tuesday Blitz June 6 Late 2023"]
[White "Yanayt, Eugene"]
[Black "Mayeregger, Arnold"]
[WhiteFideId "2020165"]
[BlackFideId "3705226"]
[WhiteElo "2083"]
[BlackElo "2038"]
[Result "1/2-1/2"]
[Round "3"]
[TimeControl "180+2"]
[Date "2023.06.07"]
[WhiteClock "0:00:08"]
[BlackClock "0:00:12"]
[Board "145"]

1. d4 {[%clk 0:03:00]}  d5 {[%clk 0:03:00]} 2. c4 {[%clk 0:03:00]}  c6 {[%clk 0:02:59]} 3. Nf3 {[%clk 0:03:00]}  Nf6 {[%clk 0:02:59]} 4. g3 {[%clk 0:02:59]}  dxc4 {[%clk 0:02:59]} 5. a4 {[%clk 0:02:57]}  a5 {[%clk 0:02:54]} 6. Na3 {[%clk 0:02:56]}  Be6 {[%clk 0:02:51]} 7. Bg2 {[%clk 0:02:54]}  h6 {[%clk 0:02:45]} 8. Ne5 {[%clk 0:02:53]}  g6 {[%clk 0:02:43]} 9. Nexc4 {[%clk 0:02:44]}  Bg7 {[%clk 0:02:43]} 10. e4 {[%clk 0:02:45]}  O-O {[%clk 0:02:42]} 11. O-O {[%clk 0:02:44]}  Na6 {[%clk 0:02:41]} 12. h3 {[%clk 0:02:43]}  Nb4 {[%clk 0:02:41]} 13. Be3 {[%clk 0:02:43]}  Kh7 {[%clk 0:02:36]} 14. Qe2 {[%clk 0:02:42]}  Qb8 {[%clk 0:02:28]} 15. Bf4 {[%clk 0:02:36]}  Qa7 {[%clk 0:02:20]} 16. Rfd1 {[%clk 0:02:32]}  Rfc8 {[%clk 0:02:18]} 17. b3 {[%clk 0:02:19]}  Qa6 {[%clk 0:02:14]} 18. Bf1 {[%clk 0:02:18]}  b5 {[%clk 0:02:11]} 19. Ne5 {[%clk 0:02:10]}  Bxb3 {[%clk 0:02:05]} 20. axb5 {[%clk 0:02:10]}  cxb5 {[%clk 0:02:06]} 21. Rdb1 {[%clk 0:02:07]}  a4 {[%clk 0:02:05]} 22. Nxb5 {[%clk 0:01:57]}  Qb6 {[%clk 0:01:55]} 23. Na3 {[%clk 0:01:29]}  Qxd4 {[%clk 0:01:52]} 24. Bg2 {[%clk 0:01:10]}  Nh5 {[%clk 0:01:44]} 25. Nf3 {[%clk 0:01:07]}  Nxf4 {[%clk 0:01:38]} 26. gxf4 {[%clk 0:01:03]}  Qxa1 {[%clk 0:01:36]} 27. Rxa1 {[%clk 0:01:02]}  Bxa1 {[%clk 0:01:37]} 28. f5 {[%clk 0:00:57]}  Nc2 {[%clk 0:01:29]} 29. fxg6+ {[%clk 0:00:53]}  fxg6 {[%clk 0:01:29]} 30. Nb5 {[%clk 0:00:38]}  Bc4 {[%clk 0:01:18]} 31. Qxc2 {[%clk 0:00:38]}  Bxb5 {[%clk 0:01:18]} 32. Qb1 {[%clk 0:00:36]}  a3 {[%clk 0:01:15]} 33. Qxa1 {[%clk 0:00:27]}  a2 {[%clk 0:01:15]} 34. Nd4 {[%clk 0:00:28]}  Bc4 {[%clk 0:01:10]} 35. e5 {[%clk 0:00:24]}  Rab8 {[%clk 0:01:10]} 36. Be4 {[%clk 0:00:24]}  Bd5 {[%clk 0:01:02]} 37. Kh2 {[%clk 0:00:19]}  Bxe4 {[%clk 0:01:00]} 38. Qxa2 {[%clk 0:00:19]}  Rf8 {[%clk 0:00:44]} 39. Qe6 {[%clk 0:00:18]}  Rbe8 {[%clk 0:00:42]} 40. Kg3 {[%clk 0:00:14]}  Kg7 {[%clk 0:00:36]} 41. h4 {[%clk 0:00:14]}  Rf7 {[%clk 0:00:35]} 42. f4 {[%clk 0:00:14]}  Rd8 {[%clk 0:00:33]} 43. Qc4 {[%clk 0:00:12]}  Bf5 {[%clk 0:00:31]} 44. Ne6+ {[%clk 0:00:10]}  Bxe6 {[%clk 0:00:31]} 45. Qxe6 {[%clk 0:00:11]}  Rd3+ {[%clk 0:00:31]} 46. Kg2 {[%clk 0:00:10]}  Rd4 {[%clk 0:00:32]} 47. h5 {[%clk 0:00:10]}  gxh5 {[%clk 0:00:28]} 48. f5 {[%clk 0:00:10]}  Rg4+ {[%clk 0:00:28]} 49. Kh3 {[%clk 0:00:10]}  Rg5 {[%clk 0:00:27]} 50. f6+ {[%clk 0:00:10]}  exf6 {[%clk 0:00:26]} 51. exf6+ {[%clk 0:00:09]}  Rxf6 {[%clk 0:00:27]} 52. Qd7+ {[%clk 0:00:08]}  Rf7 {[%clk 0:00:28]} 53. Qd4+ {[%clk 0:00:08]}  Kg6 {[%clk 0:00:27]} 54. Qe4+ {[%clk 0:00:09]}  Rgf5 {[%clk 0:00:28]} 55. Qc6+ {[%clk 0:00:09]}  R5f6 {[%clk 0:00:28]} 56. Qe4+ {[%clk 0:00:09]}  Kg7 {[%clk 0:00:28]} 57. Qg2+ {[%clk 0:00:09]}  Kh7 {[%clk 0:00:27]} 58. Qe4+ {[%clk 0:00:10]}  Rf5 {[%clk 0:00:27]} 59. Qd3 {[%clk 0:00:10]}  Kg6 {[%clk 0:00:27]} 60. Qg3+ {[%clk 0:00:09]}  Rg5 {[%clk 0:00:27]} 61. Qd6+ {[%clk 0:00:10]}  Kg7 {[%clk 0:00:26]} 62. Qd4+ {[%clk 0:00:10]}  Rf6 {[%clk 0:00:26]} 63. Qd7+ {[%clk 0:00:10]}  Kg6 {[%clk 0:00:25]} 64. Qd3+ {[%clk 0:00:10]}  Rgf5 {[%clk 0:00:25]} 65. Qg3+ {[%clk 0:00:10]}  Kh7 {[%clk 0:00:23]} 66. Qc7+ {[%clk 0:00:10]}  Rf7 {[%clk 0:00:24]} 67. Qc2 {[%clk 0:00:10]}  Kg8 {[%clk 0:00:22]} 68. Qg2+ {[%clk 0:00:10]}  Rg5 {[%clk 0:00:21]} 69. Qa8+ {[%clk 0:00:09]}  Kg7 {[%clk 0:00:22]} 70. Qa1+ {[%clk 0:00:09]}  Rf6 {[%clk 0:00:21]} 71. Qa7+ {[%clk 0:00:09]}  Kg6 {[%clk 0:00:21]} 72. Qe3 {[%clk 0:00:08]}  Rgf5 {[%clk 0:00:15]} 73. Qe4 {[%clk 0:00:08]}  Kg5 {[%clk 0:00:14]} 74. Qh4+ {[%clk 0:00:08]}  Kg6 {[%clk 0:00:14]} 75. Qe4 {[%clk 0:00:09]}  Kg7 {[%clk 0:00:14]} 76. Qb7+ {[%clk 0:00:09]}  Rf7 {[%clk 0:00:14]} 77. Qb2+ {[%clk 0:00:09]}  Kh7 {[%clk 0:00:14]} 78. Qc2 {[%clk 0:00:10]}  Rf6 {[%clk 0:00:15]} 79. Qc7+ {[%clk 0:00:09]}  Kg6 {[%clk 0:00:15]} 80. Qc2 {[%clk 0:00:09]}  Kg5 {[%clk 0:00:15]} 81. Qg2+ {[%clk 0:00:09]}  Kf4 {[%clk 0:00:14]} 82. Qf2+ {[%clk 0:00:09]}  Ke5 {[%clk 0:00:14]} 83. Qe3+ {[%clk 0:00:09]}  Kd6 {[%clk 0:00:15]} 84. Qd4+ {[%clk 0:00:09]}  Ke6 {[%clk 0:00:15]} 85. Qe4+ {[%clk 0:00:09]}  Re5 {[%clk 0:00:15]} 86. Qc4+ {[%clk 0:00:10]}  Kf5 {[%clk 0:00:15]} 87. Qf1+ {[%clk 0:00:10]}  Kg6 {[%clk 0:00:15]} 88. Qd3+ {[%clk 0:00:09]}  Rff5 {[%clk 0:00:15]} 89. Qd6+ {[%clk 0:00:10]}  Kg5 {[%clk 0:00:14]} 90. Qd8+ {[%clk 0:00:10]}  Rf6 {[%clk 0:00:14]} 91. Qd2+ {[%clk 0:00:09]}  Kf5 {[%clk 0:00:13]} 92. Qf2+ {[%clk 0:00:09]}  Kg6 {[%clk 0:00:13]} 93. Qc2+ {[%clk 0:00:09]}  Ref5 {[%clk 0:00:12]} 94. Qe4 {[%clk 0:00:08]} 1/2-1/2


[Site "https://www.chess.com"]

[Event "Titled Tuesday Blitz June 6 Late 2023"]
[White "Nikologorsky, Matfei"]
[Black "Hollan, Petr"]
[WhiteFideId "24102474"]
[BlackFideId "360945"]
[WhiteElo "2153"]
[BlackElo "2254"]
[Result "0-1"]
[Round "3"]
[TimeControl "180+2"]
[Date "2023.06.07"]
[WhiteClock "0:00:08"]
[BlackClock "0:00:30"]
[Board "147"]

1. e4 {[%clk 0:03:00]}  c5 {[%clk 0:02:59]} 2. Nf3 {[%clk 0:03:00]}  e6 {[%clk 0:02:58]} 3. d4 {[%clk 0:03:00]}  cxd4 {[%clk 0:02:59]} 4. Nxd4 {[%clk 0:03:00]}  Nf6 {[%clk 0:03:00]} 5. Nc3 {[%clk 0:03:01]}  Nc6 {[%clk 0:03:00]} 6. Ndb5 {[%clk 0:02:59]}  Bc5 {[%clk 0:02:58]} 7. Nd6+ {[%clk 0:02:54]}  Ke7 {[%clk 0:02:57]} 8. Bf4 {[%clk 0:02:55]}  e5 {[%clk 0:02:55]} 9. Nf5+ {[%clk 0:02:55]}  Kf8 {[%clk 0:02:55]} 10. Be3 {[%clk 0:02:56]}  Bxe3 {[%clk 0:02:51]} 11. Qd6+ {[%clk 0:02:43]}  Kg8 {[%clk 0:02:50]} 12. Nxe3 {[%clk 0:02:44]}  Ne8 {[%clk 0:02:46]} 13. Qd2 {[%clk 0:02:41]}  d6 {[%clk 0:02:46]} 14. O-O-O {[%clk 0:02:39]}  Be6 {[%clk 0:02:45]} 15. g3 {[%clk 0:02:30]}  Nd4 {[%clk 0:02:44]} 16. f4 {[%clk 0:02:28]}  Rc8 {[%clk 0:02:43]} 17. f5 {[%clk 0:02:18]}  Bd7 {[%clk 0:02:43]} 18. Bc4 {[%clk 0:02:14]}  b5 {[%clk 0:02:39]} 19. Bb3 {[%clk 0:02:13]}  a5 {[%clk 0:02:39]} 20. Kb1 {[%clk 0:01:53]}  a4 {[%clk 0:02:37]} 21. Bd5 {[%clk 0:01:54]}  b4 {[%clk 0:02:37]} 22. Ne2 {[%clk 0:01:32]}  Nxe2 {[%clk 0:02:36]} 23. Qxe2 {[%clk 0:01:32]}  Nf6 {[%clk 0:02:34]} 24. g4 {[%clk 0:01:24]}  h6 {[%clk 0:02:11]} 25. h4 {[%clk 0:01:18]}  b3 {[%clk 0:02:08]} 26. axb3 {[%clk 0:01:13]}  Nxd5 {[%clk 0:02:07]} 27. Nxd5 {[%clk 0:01:11]}  axb3 {[%clk 0:02:08]} 28. cxb3 {[%clk 0:01:11]}  Qa5 {[%clk 0:02:07]} 29. Ne7+ {[%clk 0:01:08]}  Kh7 {[%clk 0:02:07]} 30. Nxc8 {[%clk 0:01:08]}  Rxc8 {[%clk 0:02:06]} 31. Rh3 {[%clk 0:01:03]}  Ra8 {[%clk 0:01:59]} 32. g5 {[%clk 0:01:02]}  Bb5 {[%clk 0:01:38]} 33. Qd2 {[%clk 0:00:57]}  Qa2+ {[%clk 0:01:34]} 34. Kc2 {[%clk 0:00:57]}  Bc6 {[%clk 0:01:28]} 35. Re1 {[%clk 0:00:48]}  Ra6 {[%clk 0:01:12]} 36. Rc3 {[%clk 0:00:46]}  Qa5 {[%clk 0:01:07]} 37. g6+ {[%clk 0:00:45]}  fxg6 {[%clk 0:01:07]} 38. fxg6+ {[%clk 0:00:45]}  Kxg6 {[%clk 0:01:07]} 39. Qg2+ {[%clk 0:00:39]}  Kh7 {[%clk 0:01:06]} 40. Rg1 {[%clk 0:00:38]}  Qc7 {[%clk 0:00:58]} 41. Qg6+ {[%clk 0:00:36]}  Kh8 {[%clk 0:00:57]} 42. Rf1 {[%clk 0:00:31]}  Qc8 {[%clk 0:00:36]} 43. Rf7 {[%clk 0:00:27]}  Qg8 {[%clk 0:00:35]} 44. Rcf3 {[%clk 0:00:22]}  Be8 {[%clk 0:00:33]} 45. Qe6 {[%clk 0:00:07]}  Bxf7 {[%clk 0:00:33]} 46. Rxf7 {[%clk 0:00:08]}  Ra7 {[%clk 0:00:30]} 0-1


[Site "https://www.chess.com"]

[Event "Titled Tuesday Blitz June 6 Late 2023"]
[White "Kujawski, Adam"]
[Black "MunichMouse"]
[WhiteFideId "1100920"]
[WhiteElo "2054"]
[BlackElo "2291"]
[Result "0-1"]
[Round "3"]
[TimeControl "180+2"]
[Date "2023.06.07"]
[WhiteClock "0:00:03"]
[BlackClock "0:00:33"]
[Board "154"]

1. e4 {[%clk 0:03:00]}  c5 {[%clk 0:03:00]} 2. Nf3 {[%clk 0:03:01]}  d6 {[%clk 0:03:00]} 3. d4 {[%clk 0:03:01]}  cxd4 {[%clk 0:03:01]} 4. Nxd4 {[%clk 0:03:01]}  Nf6 {[%clk 0:03:02]} 5. Nc3 {[%clk 0:03:02]}  a6 {[%clk 0:03:02]} 6. Bg5 {[%clk 0:03:02]}  e6 {[%clk 0:03:02]} 7. f4 {[%clk 0:03:02]}  Be7 {[%clk 0:03:03]} 8. Qf3 {[%clk 0:03:03]}  Qc7 {[%clk 0:03:03]} 9. O-O-O {[%clk 0:03:03]}  Bd7 {[%clk 0:03:03]} 10. Qg3 {[%clk 0:02:45]}  Nc6 {[%clk 0:03:02]} 11. Nxc6 {[%clk 0:02:44]}  Bxc6 {[%clk 0:02:58]} 12. e5 {[%clk 0:02:44]}  dxe5 {[%clk 0:02:47]} 13. fxe5 {[%clk 0:02:44]}  Nh5 {[%clk 0:02:47]} 14. Qh4 {[%clk 0:02:43]}  g6 {[%clk 0:02:30]} 15. Be2 {[%clk 0:02:21]}  Bxg5+ {[%clk 0:02:11]} 16. Qxg5 {[%clk 0:02:20]}  h6 {[%clk 0:02:11]} 17. Qe3 {[%clk 0:02:13]}  Ng7 {[%clk 0:02:11]} 18. Ne4 {[%clk 0:02:00]}  Nf5 {[%clk 0:01:56]} 19. Nf6+ {[%clk 0:01:33]}  Kf8 {[%clk 0:01:55]} 20. Qf4 {[%clk 0:01:18]}  g5 {[%clk 0:01:53]} 21. Qb4+ {[%clk 0:00:48]}  Kg7 {[%clk 0:01:49]} 22. Bd3 {[%clk 0:00:08]}  Bxg2 {[%clk 0:01:10]} 23. Rhg1 {[%clk 0:00:07]}  Bf3 {[%clk 0:01:09]} 24. Rdf1 {[%clk 0:00:07]}  Qxe5 {[%clk 0:01:02]} 25. Nd7 {[%clk 0:00:07]}  Qc7 {[%clk 0:00:56]} 26. Bxf5 {[%clk 0:00:06]}  Qxd7 {[%clk 0:00:48]} 27. Qc3+ {[%clk 0:00:06]}  f6 {[%clk 0:00:45]} 28. Qxf3 {[%clk 0:00:05]}  exf5 {[%clk 0:00:45]} 29. h4 {[%clk 0:00:06]}  Rad8 {[%clk 0:00:37]} 30. hxg5 {[%clk 0:00:05]}  hxg5 {[%clk 0:00:37]} 31. Qxf5 {[%clk 0:00:03]}  Qxf5 {[%clk 0:00:36]} 32. Rxf5 {[%clk 0:00:04]}  Rh2 {[%clk 0:00:34]} 33. Rd1 {[%clk 0:00:03]}  Rxd1+ {[%clk 0:00:33]} 34. Kxd1 {[%clk 0:00:04]}  g4 {[%clk 0:00:33]} 35. Rf1 {[%clk 0:00:03]}  Kg6 {[%clk 0:00:33]} 36. c4 {[%clk 0:00:03]}  f5 {[%clk 0:00:33]} 0-1


[Site "https://www.chess.com"]

[Event "Titled Tuesday Blitz June 6 Late 2023"]
[White "Dubreuil, Julien"]
[Black "Kashtanov, Ruslan"]
[WhiteFideId "621285"]
[BlackFideId "4124871"]
[WhiteElo "2265"]
[BlackElo "2263"]
[Result "0-1"]
[Round "3"]
[TimeControl "180+2"]
[Date "2023.06.07"]
[WhiteClock "0:00:09"]
[BlackClock "0:00:07"]
[Board "156"]

1. e4 {[%clk 0:02:59]}  c5 {[%clk 0:02:10]} 2. Nf3 {[%clk 0:02:43]}  d6 {[%clk 0:02:09]} 3. d4 {[%clk 0:02:43]}  cxd4 {[%clk 0:02:09]} 4. Nxd4 {[%clk 0:02:43]}  Nf6 {[%clk 0:02:09]} 5. Nc3 {[%clk 0:02:43]}  a6 {[%clk 0:02:10]} 6. Bg5 {[%clk 0:02:43]}  e6 {[%clk 0:02:09]} 7. Qe2 {[%clk 0:02:43]}  Nbd7 {[%clk 0:02:07]} 8. O-O-O {[%clk 0:02:42]}  b5 {[%clk 0:01:46]} 9. f4 {[%clk 0:02:41]}  Qc7 {[%clk 0:01:33]} 10. Kb1 {[%clk 0:02:38]}  Be7 {[%clk 0:01:28]} 11. f5 {[%clk 0:02:32]}  e5 {[%clk 0:01:22]} 12. Nb3 {[%clk 0:02:25]}  b4 {[%clk 0:01:18]} 13. Bxf6 {[%clk 0:02:23]}  Nxf6 {[%clk 0:01:18]} 14. Nd5 {[%clk 0:02:18]}  Nxd5 {[%clk 0:01:18]} 15. Rxd5 {[%clk 0:02:16]}  Bb7 {[%clk 0:01:16]} 16. Rd1 {[%clk 0:02:16]}  O-O {[%clk 0:01:15]} 17. Qc4 {[%clk 0:01:47]}  Qxc4 {[%clk 0:01:12]} 18. Bxc4 {[%clk 0:01:48]}  Bxe4 {[%clk 0:01:12]} 19. Bd5 {[%clk 0:01:49]}  Bxf5 {[%clk 0:01:06]} 20. Bxa8 {[%clk 0:01:44]}  Rxa8 {[%clk 0:01:06]} 21. Rhe1 {[%clk 0:01:17]}  a5 {[%clk 0:01:01]} 22. h3 {[%clk 0:01:05]}  h5 {[%clk 0:00:59]} 23. Re2 {[%clk 0:01:02]}  Kf8 {[%clk 0:00:47]} 24. Rd5 {[%clk 0:01:02]}  a4 {[%clk 0:00:36]} 25. Ra5 {[%clk 0:01:01]}  Rxa5 {[%clk 0:00:35]} 26. Nxa5 {[%clk 0:01:01]}  Be6 {[%clk 0:00:17]} 27. Nc6 {[%clk 0:01:01]}  b3 {[%clk 0:00:17]} 28. cxb3 {[%clk 0:00:58]}  axb3 {[%clk 0:00:17]} 29. a4 {[%clk 0:00:55]}  Bg5 {[%clk 0:00:15]} 30. a5 {[%clk 0:00:51]}  Bc4 {[%clk 0:00:15]} 31. Re4 {[%clk 0:00:44]}  Bd5 {[%clk 0:00:14]} 32. Rb4 {[%clk 0:00:30]}  Bxc6 {[%clk 0:00:14]} 33. a6 {[%clk 0:00:30]}  Bxg2 {[%clk 0:00:14]} 34. a7 {[%clk 0:00:28]}  Ke7 {[%clk 0:00:13]} 35. Rxb3 {[%clk 0:00:25]}  h4 {[%clk 0:00:11]} 36. Rb8 {[%clk 0:00:19]}  Be3 {[%clk 0:00:09]} 37. a8=Q {[%clk 0:00:19]}  Bxa8 {[%clk 0:00:09]} 38. Rxa8 {[%clk 0:00:20]}  f5 {[%clk 0:00:09]} 39. b4 {[%clk 0:00:19]}  g5 {[%clk 0:00:08]} 40. b5 {[%clk 0:00:19]}  g4 {[%clk 0:00:08]} 41. Kc2 {[%clk 0:00:17]}  gxh3 {[%clk 0:00:08]} 42. Ra1 {[%clk 0:00:14]}  h2 {[%clk 0:00:07]} 43. Kd3 {[%clk 0:00:12]}  Bg1 {[%clk 0:00:07]} 44. b6 {[%clk 0:00:12]}  Bxb6 {[%clk 0:00:06]} 45. Rh1 {[%clk 0:00:11]}  Bf2 {[%clk 0:00:06]} 46. Ke2 {[%clk 0:00:11]}  Bg1 {[%clk 0:00:05]} 47. Kf3 {[%clk 0:00:12]}  Kf6 {[%clk 0:00:06]} 48. Kg2 {[%clk 0:00:12]}  d5 {[%clk 0:00:06]} 49. Kh3 {[%clk 0:00:10]}  d4 {[%clk 0:00:06]} 50. Kxh4 {[%clk 0:00:10]}  d3 {[%clk 0:00:06]} 51. Kg3 {[%clk 0:00:10]}  d2 {[%clk 0:00:07]} 52. Rxg1 {[%clk 0:00:11]}  hxg1=Q+ {[%clk 0:00:06]} 53. Kf3 {[%clk 0:00:09]}  Qe1 {[%clk 0:00:07]} 54. Kg2 {[%clk 0:00:09]}  d1=Q {[%clk 0:00:07]} 55. Kh3 {[%clk 0:00:09]}  Qg4+ {[%clk 0:00:07]} 0-1


[Site "https://www.chess.com"]

[Event "Titled Tuesday Blitz June 6 Late 2023"]
[White "Narva, Triin"]
[Black "Omariev, Maksim"]
[WhiteFideId "4502680"]
[BlackFideId "4193423"]
[WhiteElo "1976"]
[BlackElo "2421"]
[Result "1-0"]
[Round "3"]
[TimeControl "180+2"]
[Date "2023.06.07"]
[WhiteClock "0:00:07"]
[BlackClock "0:00:05"]
[Board "157"]

1. e4 {[%clk 0:03:00]}  g5 {[%clk 0:01:54]} 2. d4 {[%clk 0:02:56]}  h6 {[%clk 0:01:48]} 3. Nc3 {[%clk 0:02:56]}  Bg7 {[%clk 0:01:49]} 4. h4 {[%clk 0:02:56]}  g4 {[%clk 0:01:45]} 5. h5 {[%clk 0:02:32]}  d6 {[%clk 0:01:41]} 6. Bc4 {[%clk 0:02:28]}  Nc6 {[%clk 0:01:39]} 7. Be3 {[%clk 0:02:26]}  e5 {[%clk 0:01:36]} 8. Nge2 {[%clk 0:02:14]}  a6 {[%clk 0:01:32]} 9. a4 {[%clk 0:02:09]}  exd4 {[%clk 0:01:07]} 10. Nxd4 {[%clk 0:02:09]}  Ne5 {[%clk 0:01:08]} 11. Ba2 {[%clk 0:02:04]}  Ne7 {[%clk 0:01:08]} 12. f4 {[%clk 0:01:43]}  N5c6 {[%clk 0:00:59]} 13. f5 {[%clk 0:01:33]}  Ne5 {[%clk 0:00:53]} 14. O-O {[%clk 0:01:26]}  N7c6 {[%clk 0:00:48]} 15. Nd5 {[%clk 0:01:19]}  Bf6 {[%clk 0:00:26]} 16. Nxc7+ {[%clk 0:01:09]}  Qxc7 {[%clk 0:00:23]} 17. Qd2 {[%clk 0:00:58]}  Nxd4 {[%clk 0:00:14]} 18. Bxd4 {[%clk 0:00:55]}  Bd7 {[%clk 0:00:15]} 19. c4 {[%clk 0:00:45]}  Bc6 {[%clk 0:00:13]} 20. Rfe1 {[%clk 0:00:36]}  Bg5 {[%clk 0:00:12]} 21. Qc3 {[%clk 0:00:33]}  f6 {[%clk 0:00:11]} 22. b4 {[%clk 0:00:33]}  Bd7 {[%clk 0:00:08]} 23. c5 {[%clk 0:00:23]}  Rc8 {[%clk 0:00:05]} 24. Qb3 {[%clk 0:00:21]}  Ke7 {[%clk 0:00:02]} 25. Rad1 {[%clk 0:00:13]}  Rh7 {[%clk 0:00:02]} 26. cxd6+ {[%clk 0:00:12]}  Qxd6 {[%clk 0:00:02]} 27. Bc5 {[%clk 0:00:12]}  Rxc5 {[%clk 0:00:01]} 28. Rxd6 {[%clk 0:00:12]}  Kxd6 {[%clk 0:00:01]} 29. bxc5+ {[%clk 0:00:12]}  Kc7 {[%clk 0:00:02]} 30. Qd5 {[%clk 0:00:10]}  Bc6 {[%clk 0:00:02]} 31. Qd6+ {[%clk 0:00:10]}  Kc8 {[%clk 0:00:03]} 32. Be6+ {[%clk 0:00:09]}  Bd7 {[%clk 0:00:03]} 33. Qf8+ {[%clk 0:00:06]}  Kc7 {[%clk 0:00:03]} 34. Qg8 {[%clk 0:00:06]}  Re7 {[%clk 0:00:02]} 35. Qf8 {[%clk 0:00:06]}  Nc6 {[%clk 0:00:03]} 36. Bxd7 {[%clk 0:00:06]}  Rxd7 {[%clk 0:00:04]} 37. e5 {[%clk 0:00:05]}  fxe5 {[%clk 0:00:04]} 38. Qe8 {[%clk 0:00:05]}  Bf4 {[%clk 0:00:04]} 39. Qe6 {[%clk 0:00:05]}  g3 {[%clk 0:00:04]} 40. Qxh6 {[%clk 0:00:05]}  Nd4 {[%clk 0:00:04]} 41. Qg6 {[%clk 0:00:05]}  Nc2 {[%clk 0:00:04]} 42. Rf1 {[%clk 0:00:05]}  Ne3 {[%clk 0:00:04]} 43. Rb1 {[%clk 0:00:05]}  Rd2 {[%clk 0:00:04]} 44. Qb6+ {[%clk 0:00:05]}  Kd7 {[%clk 0:00:04]} 45. Qxb7+ {[%clk 0:00:05]}  Ke8 {[%clk 0:00:04]} 46. Qc6+ {[%clk 0:00:05]}  Kf7 {[%clk 0:00:04]} 47. Qg6+ {[%clk 0:00:05]}  Ke7 {[%clk 0:00:05]} 48. Qe6+ {[%clk 0:00:05]}  Kd8 {[%clk 0:00:04]} 49. Rb8+ {[%clk 0:00:06]}  Kc7 {[%clk 0:00:05]} 50. Qc8# {[%clk 0:00:07]} 1-0


[Site "https://www.chess.com"]

[Event "Titled Tuesday Blitz June 6 Late 2023"]
[White "Eggleston, Thomas A"]
[Black "Dedona, Mark"]
[WhiteFideId "412139"]
[BlackFideId "30920256"]
[WhiteElo "2155"]
[BlackElo "2074"]
[Result "0-1"]
[Round "3"]
[TimeControl "180+2"]
[Date "2023.06.07"]
[WhiteClock "0:00:01"]
[BlackClock "0:01:08"]
[Board "158"]

1. e4 {[%clk 0:03:00]}  c5 {[%clk 0:02:57]} 2. Nf3 {[%clk 0:03:00]}  d6 {[%clk 0:02:56]} 3. Bc4 {[%clk 0:03:00]}  Nf6 {[%clk 0:02:53]} 4. d3 {[%clk 0:03:00]}  g6 {[%clk 0:02:52]} 5. c3 {[%clk 0:02:58]}  Bg7 {[%clk 0:02:53]} 6. O-O {[%clk 0:02:58]}  O-O {[%clk 0:02:53]} 7. Re1 {[%clk 0:02:52]}  Nc6 {[%clk 0:02:45]} 8. Bb3 {[%clk 0:02:48]}  b5 {[%clk 0:02:39]} 9. a4 {[%clk 0:02:46]}  b4 {[%clk 0:02:36]} 10. Nbd2 {[%clk 0:02:39]}  a5 {[%clk 0:02:32]} 11. h3 {[%clk 0:02:34]}  Rb8 {[%clk 0:02:32]} 12. d4 {[%clk 0:02:28]}  bxc3 {[%clk 0:02:28]} 13. bxc3 {[%clk 0:02:28]}  cxd4 {[%clk 0:02:27]} 14. cxd4 {[%clk 0:02:28]}  Ba6 {[%clk 0:02:24]} 15. Ba3 {[%clk 0:01:58]}  Nb4 {[%clk 0:02:22]} 16. e5 {[%clk 0:01:55]}  Nfd5 {[%clk 0:02:17]} 17. Ne4 {[%clk 0:01:46]}  Nc7 {[%clk 0:02:00]} 18. exd6 {[%clk 0:01:19]}  exd6 {[%clk 0:02:00]} 19. Re3 {[%clk 0:01:05]}  Re8 {[%clk 0:01:54]} 20. Rc1 {[%clk 0:00:57]}  Ncd5 {[%clk 0:01:53]} 21. Bxd5 {[%clk 0:00:45]}  Nxd5 {[%clk 0:01:52]} 22. Re1 {[%clk 0:00:45]}  Nb4 {[%clk 0:01:51]} 23. Rc3 {[%clk 0:00:37]}  Bb7 {[%clk 0:01:33]} 24. Ned2 {[%clk 0:00:27]}  Qd7 {[%clk 0:01:31]} 25. Rxe8+ {[%clk 0:00:26]}  Rxe8 {[%clk 0:01:30]} 26. Nc4 {[%clk 0:00:20]}  Bxf3 {[%clk 0:01:21]} 27. Qxf3 {[%clk 0:00:20]}  d5 {[%clk 0:01:17]} 28. Ne5 {[%clk 0:00:19]}  Bxe5 {[%clk 0:01:16]} 29. dxe5 {[%clk 0:00:19]}  Rxe5 {[%clk 0:01:15]} 30. Bxb4 {[%clk 0:00:19]}  axb4 {[%clk 0:01:15]} 31. Rb3 {[%clk 0:00:19]}  Qxa4 {[%clk 0:01:15]} 32. g3 {[%clk 0:00:15]}  Qa1+ {[%clk 0:01:03]} 33. Kg2 {[%clk 0:00:15]}  Re1 {[%clk 0:01:04]} 34. h4 {[%clk 0:00:14]}  Qd4 {[%clk 0:00:59]} 35. Re3 {[%clk 0:00:13]}  Rxe3 {[%clk 0:00:59]} 36. fxe3 {[%clk 0:00:12]}  Qe4 {[%clk 0:00:59]} 37. Qxe4 {[%clk 0:00:12]}  dxe4 {[%clk 0:01:00]} 38. Kf2 {[%clk 0:00:13]}  Kg7 {[%clk 0:00:59]} 39. Ke2 {[%clk 0:00:13]}  Kf6 {[%clk 0:00:59]} 40. Kd2 {[%clk 0:00:14]}  Kf5 {[%clk 0:01:00]} 41. Kc2 {[%clk 0:00:14]}  Kg4 {[%clk 0:01:00]} 42. Kb3 {[%clk 0:00:15]}  Kf3 {[%clk 0:01:00]} 43. Kxb4 {[%clk 0:00:16]}  Kxe3 {[%clk 0:01:01]} 44. Kc4 {[%clk 0:00:16]}  Kd2 {[%clk 0:01:01]} 45. Kd5 {[%clk 0:00:17]}  e3 {[%clk 0:01:02]} 46. Ke5 {[%clk 0:00:17]}  e2 {[%clk 0:01:03]} 47. Kf6 {[%clk 0:00:18]}  e1=Q {[%clk 0:01:03]} 48. Kxf7 {[%clk 0:00:18]}  Qxg3 {[%clk 0:01:03]} 49. Kg7 {[%clk 0:00:19]}  Qxh4 {[%clk 0:01:04]} 50. Kf7 {[%clk 0:00:06]}  g5 {[%clk 0:01:04]} 51. Kg7 {[%clk 0:00:06]}  g4 {[%clk 0:01:04]} 52. Kf7 {[%clk 0:00:06]}  g3 {[%clk 0:01:05]} 53. Ke6 {[%clk 0:00:04]}  g2 {[%clk 0:01:06]} 54. Kf5 {[%clk 0:00:01]}  g1=Q {[%clk 0:01:07]} 55. Ke5 {[%clk 0:00:01]}  Qe3+ {[%clk 0:01:06]} 56. Kd6 {[%clk 0:00:01]}  Qhd4+ {[%clk 0:01:06]} 57. Kc6 {[%clk 0:00:01]}  Qec3+ {[%clk 0:01:07]} 58. Kb5 {[%clk 0:00:01]}  Qdb4+ {[%clk 0:01:08]} 0-1


[Site "https://www.chess.com"]